[Event "III Menorca Open-A 2024"]
[Site "Ciutadella Menorca"]
[Date "2024.04.06"]
[Round "7.11"]
[White "Tarhan, Adar"]
[Black "Idani, Pouya"]
[Result "1/2-1/2"]
[ECO "B51"]
[WhiteElo "2446"]
[BlackElo "2609"]
[Annotator "TA"]
[PlyCount "85"]
[EventDate "2024.04.02"]
[EventType "swiss"]
[EventCountry "ESP"]
[SourceTitle "playchess.com"]
[Source "ChessBase"]
[SourceQuality "1"]
[TimeControl "5400+30"]

{[%evp 9,85,13,22,16,31,21,14,30,24,25,33,23,27,0,0,0,0,0,0,0,0,0,0,0,7,0,0,0,0,-56,-47,-40,18,0,53,0,0,-31,-30,-32,-32,-33,-32,-32,-32,-32,-32,-28,-32,-31,0,-31,-8,-8,-8,-11,-11,-27,-24,-20,-21,-28,-5,-4,-1,-8,-8,-8,0,0,0,0,0,0,0,0,0,0]} 1. e4 {[%emt 0:00:04]} c5 {[%emt 0:00:24]} 2. Nf3 {[%emt 0:00:11]} d6 {[%emt 0:00:04]} 3. Bb5+ {[%emt 0:00:38]} Nd7 {[%emt 0:01:22]} 4. O-O {[%emt 0:00:07]} a6 {[%emt 0:00:03]} 5. Bd3 {[%emt 0:00:04]} Ngf6 {[%emt 0:00:47]} 6. c3 {[%emt 0:00:17]} g6 {[%emt 0:01:12]} 7. Bc2 {[%emt 0:00:29]} b5 {[%emt 0:00:16]} 8. d4 {[%emt 0:01:12]} Bb7 {[%emt 0:00:17]} 9. Re1 {[%emt 0:05:19]} cxd4 {[%emt 0:00:06]} 10. cxd4 {[%emt 0:00:03]} Bg7 {[%emt 0:00:05]} 11. e5 {[%emt 0:01:55]} dxe5 {[%emt 0:00:17]} 12. dxe5 {[%emt 0:00:04]} Nd5 {[%emt 0:00:04]} 13. e6 {[%emt 0:00:11]} fxe6 {[%emt 0:00:05]} 14. Ng5 $1 {[%emt 0:01:36]} Nc5 {[%emt 0:00:04]} 15. Nxh7 {[%emt 0:00:59][%cal Ob1d2]} Qd6 {[%emt 0:00:05] [#] Strongly threatening ...0-0-0.} (15... Rxh7 16. Bxg6+ Kd7 17. Bxh7 $18) 16. Bxg6+ {[%emt 0:00:06]} Kd7 $1 {[%emt 0:00:05] And now ...Rag8 would win.} 17. Nd2 {[%emt 0:07:03]} Nb4 {[%emt 0:03:28]} 18. Nb3 {[%emt 0:05:39] Some like it hot} Nxb3 {[%emt 0:00:11]} 19. Qxd6+ {[%emt 0:05:07]} (19. axb3 $11 Bd4 20. g3) 19... exd6 $15 {[%emt 0:01:18]} 20. axb3 {[%emt 0:00:03]} Rac8 {[%emt 0:38:04]} (20... Rag8 $15 21. Bf7 Nc2 22. Bxe6+ Kc7) 21. Re2 {[%emt 0:04:41]} Be5 {[%emt 0:07:15]} (21... Bd4 $11 22. Bd2 Rcg8) 22. h4 {[%emt 0:13:20]} (22. g3 $14) 22... Rcg8 $1 $11 {[%emt 0:15:03]} 23. Be4 {[%emt 0:05:28]} Nc6 {[%emt 0:13:18][%cal Bb4c6,Bc6d4,Bd4e2][%mdl 32] [#] Hoping for ...Nd4.} 24. Be3 {[%emt 0:05:38]} Rg4 {[%emt 0:00:23][%csl LRe4,LRh4] Inhibits g3.} 25. Ng5 {[%emt 0:01:23]} (25. Bg5 $2 Rxe4 26. Rxe4 Rxh7 $19) 25... Rgxh4 {[%emt 0:05:07][%csl Gh8][%cal Rh4h1]} 26. g3 {[%emt 0:00:03]} Nd4 {[%emt 0:00:53]} 27. gxh4 {[%emt 0:00:05] Bxd4 is the strong threat.} (27. Bxb7 $2 Nxe2+ 28. Kg2 (28. Kf1 $2 Rh1+ 29. Bxh1 Rxh1+ 30. Kxe2 Rxa1 $19) 28... Rh2+ (28... Bxb2 29. Ra2 $11) 29. Kf3 Nd4+ (29... Bxb2 30. Rb1 $15) 30. Ke4 Nc2 (30... Nxb3 31. Rxa6 Bxb2 32. Ra7 $11) (30... Rb8 31. Rxa6 Rxb7 32. Bxd4 $19) 31. Rxa6 Bxb2 $17) (27. Bxd4 Rh1+ 28. Kg2 Bxe4+ (28... Rxa1 29. Bxe5 Bxe4+ 30. Rxe4 $17) 29. Rxe4 R8h2+ (29... Rxa1 30. Bxe5 dxe5 31. Nf7 $17) 30. Kf3 Rxa1 31. Bxe5 dxe5 $14) 27... Nxe2+ {[%emt 0:00:05]} 28. Kf1 {[%emt 0:00:13]} Bxe4 {[%emt 0:00:12]} 29. Kxe2 {[%emt 0:01:38]} Rxh4 {[%emt 0:04:20] ...Bb7 would now be deadly.} (29... Bxb2 30. Ra2 (30. Rxa6 Rxh4 31. Ra7+ Kc8 $11) 30... Bd5 31. Rxb2 $18) (29... Bb7 $5 30. Nf7 $8 Rxh4 (30... Bxb2 31. Ra2 $11) 31. Nxe5+ dxe5 $11) 30. Rxa6 {[%emt 0:00:04]} Bf5 {[%emt 0:02:15][%cal Od6d5] A strong pair of Bishops.} 31. Nf7 {[%emt 0:01:14]} Bh2 {[%emt 0:01:27]} (31... Bxb2 32. Rxd6+ Ke8 33. Nh6) 32. Ra7+ {[%emt 0:02:02]} Kc6 {[%emt 0:00:05]} 33. Ra6+ {[%emt 0:01:24]} Kd5 {[%emt 0:00:13]} 34. Kd2 {[%emt 0:02:34]} Bg6 {[%emt 0:00:39]} 35. Nd8 {[%emt 0:01:25]} Bf4 {[%emt 0:00:51]} 36. Nb7 {[%emt 0:01:02] The position is equal.} Be5 {[%emt 0:01:52][%cal Og6h5]} 37. Rb6 {[%emt 0:02:04]} (37. f4 {keeps more tension.} Rh2+ 38. Ke1 Bf6 39. Rxd6+ Ke4 40. Rxe6+ Kf3 41. Bg1) 37... Be8 {[%emt 0:01:01]} (37... Bxb2 38. Rxb5+ (38. Rxd6+ Ke5 $11) 38... Kc6 39. Rb6+ Kc7 40. Nxd6 $16) 38. f4 {[%emt 0:00:37]} Bxf4 {[%emt 0:02:57]} (38... Bxb2 $2 {too greedy.} 39. Rxd6+ Ke4 40. Rxe6+ Kf3 41. Rxe8 $18) 39. Bxf4 {[%emt 0:00:04]} Rxf4 {[%emt 0:00:03]} 40. Rxd6+ {[%emt 0:00:21]} Ke5 {[%emt 0:00:04]} 41. Rb6 {[%emt 0:01:06]} Kd5 {[%emt 0:01:14]} 42. Rd6+ {[%emt 0:00:43]} Ke5 {[%emt 0:00:04]} 43. Rb6 {[%emt 0:00:04] Weighted Error Value: White=0.10 (very precise) /Black=0.08 (flawless) .  Mistake:       	White=2     	Black=2      Inaccurate:     	White=2     	Black=1      OK:         	White=20    	Black=19     Best:        	White=3     	Black=4      Strong:       	White=1     	Black=2} 1/2-1/2

[Event "III Menorca Open-A 2024"]
[Site "Ciutadella Menorca"]
[Date "2024.04.06"]
[Round "7.12"]
[White "Fernandez, Daniel Howard"]
[Black "Alexakis, Dimitris"]
[Result "1-0"]
[ECO "B23"]
[WhiteElo "2528"]
[BlackElo "2443"]
[Annotator "TA"]
[PlyCount "102"]
[EventDate "2024.04.02"]
[EventType "swiss"]
[EventCountry "ESP"]
[SourceTitle "playchess.com"]
[Source "ChessBase"]
[SourceQuality "1"]
[TimeControl "5400+30"]

{[%evp 16,102,33,32,35,35,23,48,29,11,6,8,9,8,12,8,11,8,11,0,0,0,26,0,18,-23,-13,-21,-18,-26,23,19,17,29,29,34,41,52,76,79,79,77,124,119,110,121,199,193,175,221,224,219,232,230,199,216,197,154,155,137,145,131,286,318,306,318,610,596,823,823,721,810,830,835,804,803,1002,949,1674,1599,4133,2082,2368,2024,2556,4133,4694,2334,1249]} 1. e4 {[%emt 0:16:35]} c5 {[%emt 0:00:06]} 2. Nc3 {[%emt 0:00:05]} e6 {[%emt 0:01:24]} 3. Nge2 {[%emt 0:00:20]} Nc6 {[%emt 0:05:36]} 4. g3 {[%emt 0:00:46]} d5 {[%emt 0:01:17]} 5. exd5 {[%emt 0:00:59]} exd5 {[%emt 0:00:04]} 6. d4 {[%emt 0:00:18] B23: Closed Sicilian: Lines without g3.} Nf6 {[%emt 0:05:06]} 7. Be3 {[%emt 0:06:30]} cxd4 {[%emt 0:11:39]} 8. Bxd4 {[%emt 0:01:44]} Bg4 {[%emt 0:18:12]} 9. Bg2 {[%emt 0:08:46]} Be7 {[%emt 0:07:37]} 10. h3 {[%emt 0:00:58]} Bxe2 {[%emt 0:08:29]} 11. Nxe2 {[%emt 0:02:43]} Nxd4 {[%emt 0:00:10]} 12. Nxd4 $146 {[%emt 0:00:53]} ({Predecessor:} 12. Qxd4 O-O 13. O-O Rc8 14. c3 Bc5 15. Qd3 Re8 16. Rad1 Qb6 17. b4 Bd6 18. Rfe1 {0-1 Sindarov,J (2544)-Panov,I (2069) Levitov Christmas Online Q2 blitz 2020}) 12... O-O {[%emt 0:00:21]} 13. c3 {[%emt 0:00:13]} Bc5 {[%emt 0:01:29]} 14. O-O {[%emt 0:01:13]} Re8 {[%emt 0:00:12]} 15. Bf3 {[%emt 0:13:06]} Ne4 {[%emt 0:03:31]} 16. Kg2 {[%emt 0:00:27]} Re5 {[%emt 0:09:01]} 17. Qd3 {[%emt 0:04:37]} Qb6 {[%emt 0:06:02]} 18. b4 {[%emt 0:02:32]} Bf8 {[%emt 0:06:56]} 19. Rfe1 {[%emt 0:00:16]} f5 {[%emt 0:05:48]} 20. Bxe4 {[%emt 0:04:30]} fxe4 {[%emt 0:00:08]} 21. Qe3 {[%emt 0:00:13]} Rc8 {[%emt 0:00:23]} 22. Rad1 {[%emt 0:01:50]} Be7 {[%emt 0:00:35]} (22... Qf6 $142) 23. f4 $11 {[%emt 0:01:05]} exf3+ $1 {[%emt 0:01:30]} 24. Qxf3 {[%emt 0:00:03]} Qf6 {[%emt 0:00:57]} 25. Rxe5 {[%emt 0:06:02]} Qxe5 {[%emt 0:00:02]} 26. Ne2 {[%emt 0:01:08]} Bf6 {[%emt 0:01:08]} 27. Rxd5 {[%emt 0:00:25]} ({But not} 27. Qxd5+ Qxd5+ 28. Rxd5 Bxc3 $15) (27. Qxd5+ {simplifies} Qxd5+ 28. Rxd5 Bxc3 29. Nxc3 Rxc3 30. Rd8+) 27... Qe6 {[%emt 0:01:18]} 28. h4 {[%emt 0:02:06]} Re8 {[%emt 0:00:59]} ({Black should play} 28... h6) 29. Nf4 $16 {[%emt 0:00:59]} Qe1 {[%emt 0:00:55]} 30. Rd3 {[%emt 0:01:13]} Re4 {[%emt 0:02:31]} (30... b6 $16 {was called for.} 31. Kh3 Qe4) 31. a4 {[%emt 0:12:56]} b6 {[%emt 0:00:26]} 32. Rd1 {[%emt 0:03:34]} Qe3 {[%emt 0:00:23]} 33. Qxe3 $1 {[%emt 0:01:26]} Rxe3 {[%emt 0:00:02]} 34. Nd5 {[%emt 0:00:12]} Re2+ {[%emt 0:00:05]} 35. Kf3 {[%emt 0:00:08]} Rc2 {[%emt 0:01:06]} 36. Ke4 {[%emt 0:00:08]} Kf7 {[%emt 0:00:15]} 37. Nxf6 {[%emt 0:00:24]} Kxf6 {[%emt 0:00:23]} 38. Kd4 {[%emt 0:01:04]} Ra2 $2 {[%emt 0:01:02] [#]} (38... Rg2 $16) 39. a5 $1 $18 {[%emt 0:05:22]} bxa5 {[%emt 0:00:12] [#]} 40. b5 $1 {[%emt 0:00:02]} Rb2 $2 {[%emt 0:00:52]} (40... Ra3 41. g4 Ke6) 41. c4 $18 {[%emt 0:00:27]} Ke6 {[%emt 0:01:32]} 42. Ra1 {[%emt 0:02:03]} Rd2+ {[%emt 0:01:03]} 43. Kc5 {[%emt 0:00:08]} Rd7 {[%emt 0:00:39]} 44. Rxa5 {[%emt 0:00:03]} Rc7+ {[%emt 0:00:03]} 45. Kb4 {[%emt 0:00:19]} Kd6 {[%emt 0:00:17]} 46. c5+ {[%emt 0:01:14]} Rxc5 {[%emt 0:00:59]} 47. Rxa7 {[%emt 0:00:05]} Rc1 {[%emt 0:00:17]} 48. Rxg7 {[%emt 0:00:05]} Rb1+ {[%emt 0:00:09]} 49. Ka5 {[%emt 0:00:07]} h6 {[%emt 0:00:31]} 50. Rg6+ {[%emt 0:00:14]} Kc5 {[%emt 0:00:07]} 51. Rc6+ {[%emt 0:00:06]} (51. Rxh6 $2 Ra1#) 51... Kd5 {[%emt 0:02:00]} 1-0

[Event "III Menorca Open-A 2024"]
[Site "Ciutadella Menorca"]
[Date "2024.04.06"]
[Round "7.13"]
[White "Iermito, Sebastian"]
[Black "Akbas, Umut Ata"]
[Result "1-0"]
[ECO "A13"]
[WhiteElo "2511"]
[BlackElo "2436"]
[Annotator "RC"]
[PlyCount "205"]
[EventDate "2024.04.02"]
[EventType "swiss"]
[EventCountry "ESP"]
[SourceTitle "playchess.com"]
[Source "ChessBase"]
[SourceQuality "1"]
[TimeControl "5400+30"]

1. Nf3 {[%emt 0:00:03]} d5 {[%emt 0:07:57]} 2. g3 {[%emt 0:00:06]} Nf6 {[%emt 0:00:21]} 3. Bg2 {[%emt 0:00:07]} c5 {[%emt 0:00:17]} 4. O-O {[%emt 0:00:25]} e6 {[%emt 0:00:21]} 5. c4 {[%emt 0:00:40]} d4 {[%emt 0:00:36]} 6. e3 {[%emt 0:00:29]} Nc6 {[%emt 0:00:15]} 7. d3 {[%emt 0:03:23]} Bd6 {[%emt 0:01:29]} 8. exd4 {[%emt 0:00:46]} cxd4 {[%emt 0:00:10]} 9. Bg5 {[%emt 0:00:33]} h6 {[%emt 0:01:01]} 10. Bxf6 {[%emt 0:00:04]} Qxf6 {[%emt 0:00:08]} 11. Nbd2 {[%emt 0:00:13]} Qd8 {[%emt 0:01:10]} 12. a3 {[%emt 0:06:07]} a5 {[%emt 0:01:01]} 13. Rc1 {[%emt 0:00:22]} O-O {[%emt 0:01:31]} 14. c5 {[%emt 0:00:32]} Bc7 {[%emt 0:00:21]} 15. Re1 {[%emt 0:06:12]} Qd7 {[%emt 0:27:08]} 16. Qa4 {[%emt 0:23:42]} Ra6 {[%emt 0:02:37]} 17. Nc4 {[%emt 0:00:22]} Kh8 {[%emt 0:09:27]} 18. Nfd2 {[%emt 0:03:22]} f5 {[%emt 0:02:20]} 19. Qb5 {[%emt 0:05:42]} Qd8 {[%emt 0:05:10]} 20. Nf3 {[%emt 0:04:29]} Qd7 {[%emt 0:03:17]} 21. Qb3 {[%emt 0:03:58]} a4 {[%emt 0:02:09]} 22. Qd1 {[%emt 0:00:21]} Kh7 {[%emt 0:03:29]} 23. Nfe5 {[%emt 0:07:52]} Nxe5 {[%emt 0:01:17]} 24. Nxe5 {[%emt 0:00:04]} Qb5 {[%emt 0:00:48]} 25. Qc2 {[%emt 0:07:31]} b6 {[%emt 0:08:37]} 26. Nc6 {[%emt 0:06:19]} bxc5 {[%emt 0:06:59]} 27. Qxc5 {[%emt 0:01:46]} Qxc5 {[%emt 0:00:07]} 28. Rxc5 {[%emt 0:00:02]} Bd7 {[%emt 0:01:29]} 29. Nxd4 {[%emt 0:02:58]} Bb6 {[%emt 0:02:03]} 30. Rc4 {[%emt 0:00:39]} Rb8 {[%emt 0:00:27]} 31. Nc6 {[%emt 0:04:25]} Bxc6 {[%emt 0:02:13]} 32. Bxc6 {[%emt 0:02:43]} Bd4 {[%emt 0:03:19]} 33. Rxd4 {[%emt 0:04:37]} Rxc6 {[%emt 0:00:05]} 34. Re2 {[%emt 0:00:13]} Ra6 {[%emt 0:00:41]} 35. Rc2 {[%emt 0:01:35]} Rab6 {[%emt 0:02:51]} 36. Rxa4 {[%emt 0:00:16]} Rxb2 {[%emt 0:00:05]} 37. Rc7 {[%emt 0:02:06]} R8b7 {[%emt 0:00:54]} 38. Rxb7 {[%emt 0:00:56]} Rxb7 {[%emt 0:00:06]} 39. Ra6 {[%emt 0:00:34]} Rd7 {[%emt 0:01:28]} 40. Rxe6 {[%emt 0:00:38]} Rxd3 {[%emt 0:00:18]} 41. Ra6 {[%emt 0:01:22]} Rd2 {[%emt 0:00:40]} 42. Kg2 {[%emt 0:00:55]} Rd3 {[%emt 0:03:00]} 43. h4 {[%emt 0:00:17]} h5 {[%emt 0:00:10]} 44. a4 {[%emt 0:00:29]} Ra3 {[%emt 0:00:08]} 45. a5 {[%emt 0:00:16]} Kg8 {[%emt 0:00:33]} 46. Ra7 {[%emt 0:00:08]} Kh7 {[%emt 0:00:11]} 47. Ra6 {[%emt 0:01:20]} Kg8 {[%emt 0:03:16]} 48. Kf1 {[%emt 0:00:47]} Ra2 {[%emt 0:00:00]} 49. Ra7 {[%emt 0:00:56]} Kh7 {[%emt 0:00:00]} 50. a6 {[%emt 0:00:13]} Kg6 {[%emt 0:00:00]} 51. f4 {[%emt 0:00:58]} Kf6 {[%emt 0:00:00]} 52. Ra8 {[%emt 0:00:49]} Kg6 {[%emt 0:00:36]} 53. Kg1 {[%emt 0:00:17]} Kh7 {[%emt 0:00:47]} 54. Kf1 {[%emt 0:00:02]} Kg6 {[%emt 0:00:07]} 55. Ke1 {[%emt 0:00:04]} Ra3 {[%emt 0:00:50]} 56. Kd2 {[%emt 0:00:48]} Rxg3 {[%emt 0:00:30]} 57. Rb8 {[%emt 0:00:28]} Ra3 {[%emt 0:00:18]} 58. Rb6+ {[%emt 0:00:03]} Kf7 {[%emt 0:00:42]} 59. Kc2 {[%emt 0:00:15]} Ke7 {[%emt 0:00:17]} 60. Kb2 {[%emt 0:00:22]} Ra5 {[%emt 0:00:10]} 61. Kb3 {[%emt 0:00:23]} Kd7 {[%emt 0:00:20]} 62. Rg6 {[%emt 0:00:31]} Kc7 {[%emt 0:00:40]} 63. Kb4 {[%emt 0:01:46]} Ra1 {[%emt 0:00:37]} 64. Rxg7+ {[%emt 0:00:49]} Kb8 {[%emt 0:00:25]} 65. Rf7 {[%emt 0:00:40]} Rxa6 {[%emt 0:01:05]} 66. Rxf5 {[%emt 0:00:16]} Kc7 {[%emt 0:00:30]} 67. Kc4 {[%emt 0:00:53]} Kd7 {[%emt 0:00:15]} 68. Kd4 {[%emt 0:00:20]} Ra4+ {[%emt 0:01:47]} 69. Ke3 {[%emt 0:00:29]} Ke6 {[%emt 0:00:08]} 70. Rxh5 {[%emt 0:00:15]} Kf6 {[%emt 0:00:26]} 71. Rg5 {[%emt 0:00:35]} Ra1 {[%emt 0:00:39]} 72. Kf3 {[%emt 0:00:39]} Rf1+ {[%emt 0:00:22]} 73. Kg3 {[%emt 0:00:15]} Rg1+ {[%emt 0:00:12]} 74. Kf2 {[%emt 0:00:24]} Rh1 {[%emt 0:00:26]} 75. h5 {[%emt 0:00:07]} Rh3 {[%emt 0:00:50]} 76. Kg2 {[%emt 0:00:15]} Rh4 {[%emt 0:00:05]} 77. Kg3 {[%emt 0:00:13]} Rh1 {[%emt 0:00:05]} 78. Ra5 {[%emt 0:01:11]} Rg1+ {[%emt 0:01:22]} 79. Kf2 {[%emt 0:00:23]} Rh1 {[%emt 0:00:16]} 80. Kg2 {[%emt 0:00:14]} Rb1 {[%emt 0:01:04]} 81. Rg5 {[%emt 0:00:20]} Rb3 {[%emt 0:00:31]} 82. h6 {[%emt 0:00:40]} Rb8 {[%emt 0:00:02]} 83. Kf3 {[%emt 0:00:34]} Rh8 {[%emt 0:00:08]} 84. Rh5 {[%emt 0:00:38]} Kg6 {[%emt 0:00:05]} 85. Kg4 {[%emt 0:00:24]} Kh7 {[%emt 0:00:02]} 86. Rh1 {[%emt 0:01:37]} Rg8+ {[%emt 0:01:00]} 87. Kf3 {[%emt 0:00:23]} Ra8 {[%emt 0:01:29]} 88. Ke4 {[%emt 0:00:18]} Re8+ {[%emt 0:00:41]} 89. Kd5 {[%emt 0:00:19]} Rf8 {[%emt 0:00:31]} 90. Ke5 {[%emt 0:00:06]} Re8+ {[%emt 0:00:13]} 91. Kd6 {[%emt 0:00:12]} Rf8 {[%emt 0:00:29]} 92. Rh4 {[%emt 0:00:27]} Rf5 {[%emt 0:00:29]} 93. Ke6 {[%emt 0:00:14]} Ra5 {[%emt 0:00:02]} 94. f5 {[%emt 0:00:18]} Ra6+ {[%emt 0:00:33]} 95. Ke5 {[%emt 0:00:36]} Ra5+ {[%emt 0:00:28]} 96. Kf6 {[%emt 0:00:14]} Ra6+ {[%emt 0:00:27]} 97. Kg5 {[%emt 0:00:05]} Ra1 {[%emt 0:00:14]} 98. Re4 {[%emt 0:01:37]} Ra7 {[%emt 0:01:22]} 99. Re5 {[%emt 0:00:36]} Rb7 {[%emt 0:00:42]} 100. f6 {[%emt 0:00:19]} Rb1 {[%emt 0:00:27]} 101. f7 {[%emt 0:00:55]} Rb8 {[%emt 0:00:33]} 102. Re8 {[%emt 0:00:39]} Rb1 {[%emt 0:00:18]} 103. Rh8+ {[%emt 0:00:47]} 1-0

[Event "III Menorca Open-A 2024"]
[Site "Ciutadella Menorca"]
[Date "2024.04.06"]
[Round "7.14"]
[White "Malek, Jan"]
[Black "Krzyzanowski, Marcin"]
[Result "0-1"]
[ECO "E48"]
[WhiteElo "2441"]
[BlackElo "2510"]
[Annotator "TA"]
[PlyCount "68"]
[EventDate "2024.04.02"]
[EventType "swiss"]
[EventCountry "ESP"]
[SourceTitle "playchess.com"]
[Source "ChessBase"]
[SourceQuality "1"]
[TimeControl "5400+30"]

{[%evp 22,68,18,18,39,56,56,56,57,53,68,56,241,228,253,242,240,239,481,215,214,50,33,36,40,19,9,0,0,0,0,-52,-56,-216,-225,-235,-215,-234,-217,-308,-305,-1539,-1612,-29969,-29970,-29970,-6123,-1909,-1408]} 1. d4 {[%emt 0:00:02]} Nf6 {[%emt 0:00:06]} 2. c4 {[%emt 0:00:06]} e6 {[%emt 0:00:06]} 3. Nc3 {[%emt 0:00:04]} Bb4 {[%emt 0:00:07]} 4. e3 {[%emt 0:00:06]} c5 {[%emt 0:00:19]} 5. Bd3 {[%emt 0:00:05]} Nc6 {[%emt 0:00:19]} 6. Nge2 {[%emt 0:00:06]} cxd4 {[%emt 0:00:04]} 7. exd4 {[%emt 0:00:05]} d5 {[%emt 0:00:04]} 8. cxd5 {[%emt 0:00:06]} Nxd5 {[%emt 0:01:56]} 9. O-O {[%emt 0:00:22]} O-O {[%emt 0:00:10]} 10. a3 {[%emt 0:00:18]} Bd6 {[%emt 0:00:58]} 11. Re1 {[%emt 0:00:34]} Nf6 {[%emt 0:01:49]} 12. Bg5 {[%emt 0:05:04]} Be7 {[%emt 0:16:34]} 13. Bc2 {[%emt 0:04:56]} g6 {[%emt 0:04:23]} 14. h4 {[%emt 0:23:50]} b6 {[%emt 0:05:12]} 15. Qd3 {[%emt 0:00:54]} Bb7 {[%emt 0:03:05]} 16. Rad1 {[%emt 0:00:09]} Ng4 $2 {[%emt 0:11:27]} ({Better is} 16... Nd5 $14) 17. Qg3 {[%emt 0:05:56]} h5 {[%emt 0:10:08]} 18. d5 {[%emt 0:07:34]} exd5 {[%emt 0:10:47]} 19. Nxd5 {[%emt 0:00:52]} Bd6 $2 {[%emt 0:04:31]} (19... Bxg5 {might work better.} 20. hxg5 Qb8) 20. Qb3 {[%emt 0:11:04]} (20. Nef4 $142 Qb8 21. f3 Bc5+ 22. Kh1 Nf2+ 23. Kh2 Nxd1 24. Rxd1 (24. Nf6+ Kh8 $18)) 20... Qb8 $18 {[%emt 0:03:14]} 21. Nf6+ $2 {[%emt 0:14:10]} (21. Nef4 $18 Nce5 22. Rxe5 Nxe5 (22... Bxe5 $2 23. Ne7+ Kg7 24. Nexg6 $18) 23. Nf6+ Kh8 24. Be4) 21... Nxf6 $14 {[%emt 0:00:57]} 22. Bxf6 {[%emt 0:25:07]} Bh2+ {[%emt 0:02:51]} 23. Kf1 {[%emt 0:00:00]} Be5 {[%emt 0:01:59]} 24. Bxe5 {[%emt 0:00:00]} Qxe5 {[%emt 0:01:26]} (24... Nxe5 $6 25. Nf4 $16) 25. Bxg6 {[%emt 0:00:00]} Na5 $1 {[%emt 0:01:24]} 26. Qd3 {[%emt 0:00:00]} ({White should try} 26. Qa2 $11 Qh2 27. f3) 26... fxg6 $15 {[%emt 0:01:54]} 27. b4 $2 {[%emt 0:00:00] [#]} (27. Qxg6+ $15 Qg7 28. Qxg7+ Kxg7 29. Ng3) 27... Qf6 $1 $19 {[%emt 0:02:10]} 28. Qg3 {[%emt 0:00:00]} Nc4 {[%emt 0:02:58]} 29. Nf4 {[%emt 0:00:00] [#]} Rf7 $1 {[%emt 0:06:24]} (29... Qxf4 30. Qxg6+ Kh8 31. Qxh5+ Kg7 32. Rd7+ Rf7 33. Rxf7+ Qxf7 34. Qg5+ Kf8 35. Qh6+ Qg7 (35... Kg8 36. Re6 $11) 36. Qf4+ (36. Qxg7+ $2 Kxg7 37. Re7+ Kg8 $19) 36... Kg8 (36... Qf7 37. Qh6+ Kg8 38. Re6 $11) 37. Qxc4+ Kh8 38. g3 $15) 30. Ne6 {[%emt 0:00:16]} (30. Qxg6+ $142 Qxg6 31. Nxg6) 30... Re8 $19 {[%emt 0:02:08]} 31. Nd8 $2 {[%emt 0:00:23]} (31. Ng5 Rfe7 32. Rxe7 Rxe7 33. Kg1) 31... Nd2+ $19 {[%emt 0:01:22]} (31... Rxd8 32. Rxd8+ Qxd8 33. Qxg6+ Kf8 34. Qh6+ Rg7 (34... Kg8 35. Qg6+ Kf8 36. Qh6+ Rg7 37. Qh8+ Rg8 38. Qh6+ Kf7 39. Qe6+ Kg7 40. Qxc4 $17) 35. Qh8+ Rg8 36. Qh6+ Kf7 37. Qe6+ Kg7 (37... Kf8 38. Qh6+ Kf7 39. Qe6+ Kg7 40. Qxc4 $17) 38. Qxc4 $17) 32. Rxd2 {[%emt 0:00:33]} Rxe1+ {[%emt 0:03:09]} (32... Rxd8 33. Rxd8+ Qxd8 34. Qxg6+ Kf8 35. Qh6+ Rg7 36. Qh8+ Rg8 37. Qh6+ Rg7 38. Qh8+ Rg8 39. Qh6+ Rg7 $11) 33. Kxe1 {[%emt 0:00:01]} Qa1+ {[%emt 0:00:08]} (33... Re7+ $142 34. Kd1 Qa1+ 35. Kc2 Qa2+ 36. Kc3 Qxa3+ 37. Kc4 Rc7+ 38. Qxc7 Qc1+ (38... Bxg2 39. Qf7+ Kh8 40. Qf8+ Kh7 41. Rd7#) 39. Kb3 Qxc7 40. Nxb7 Qxb7 41. g3 Qf7+ 42. Ka3 Qc4 43. Rb2 b5 44. Rb1 Qc2 45. Rb3 Kg7 (45... Qxf2 $2 46. Rc3 $19) 46. f3 Qf2 47. g4 Qxh4 48. gxh5 gxh5 (48... Qxh5 $2 49. Re3 $19) 49. Rc3 Qf4 50. Kb2 h4 (50... Qxb4+ 51. Kc2 $19) 51. Kc2 h3 (51... Qxb4 52. Rc7+ Kg6 53. Rc6+ Kf5 54. Rc7 $19) 52. Rd3 h2 (52... Qxb4 $2 53. Rc3 $19) 53. Rd7+ Kf6 54. Rd1 Qxf3 (54... Qxb4 {leads to mate.} 55. Rh1 Qc4+ 56. Kd2 Qd4+ 57. Ke2 Qg1 58. Rxg1 hxg1=Q 59. Kd3 Qb1+ 60. Ke2 b4 61. Kf2 b3 62. Kg2 b2 63. Kg3 Qg6+ 64. Kh2 b1=Q 65. f4 Qgg1+ 66. Kh3 Qh7#) (54... Qc4+ {is a self mate.} 55. Kd2 Qxb4+ 56. Ke2 Qb2+ 57. Ke3 Qb3+ 58. Kd2) 55. Rc1 h1=Q (55... h1=R 56. Rxh1 Qxh1 57. Kd2 Qf3 58. Kc2 Ke5 59. Kb2 Kd4 60. Kc2 Qc3+ 61. Kb1 Qd2 62. Ka1 Kc3 63. Kb1 Qb2#) 56. Rxh1 Qxh1 57. Kd2 Ke5 58. Kd3 Qe1 59. Kc2 Kd4 (59... Qxb4 60. Kd3 Qe1 61. Kc2 Kd4 62. Kb2 Qd1 63. Ka3 Qc2 64. Kb4 Qa4#) 60. Kb2 Qxb4+ 61. Kc2 Ke3 62. Kc1 Kd3 63. Kd1 Qd2#) 34. Ke2 $19 {[%emt 0:00:14]} Ba6+ {[%emt 0:01:02]} 0-1